bitfinex-derivatives/quotes_SOLF0:USTF0_20250411
["timestamp","ask_amount","ask_price","bid_price","bid_amount"]
[1744344948353,0.06093637,116.18,116.17,9.14192089]
[1744344949362,0.06093637,116.18,116.15,0.06156619]
[1744344949554,0.06093637,116.18,116.16,9.15634032]
[1744344949758,0.06093637,116.18,116.15,0.06156619]
[1744344950760,0.06093637,116.18,116.16,9.03382714]
[1744344950959,0.06093637,116.18,116.15,0.06156619]
[1744344951155,8.67413637,116.18,116.16,9.03354302]
[1744344951360,0.06093637,116.18,116.15,0.06156619]
[1744344951561,0.06093637,116.18,116.16,9.04536989]
[1744344951860,0.06093637,116.18,116.15,8.67686619]
[1744344952055,0.06093637,116.18,116.16,9.04493189]
[1744344952252,0.06093637,116.18,116.15,0.06156619]
[1744344952457,0.06093637,116.18,116.16,9.05332519]
[1744344952651,0.06093637,116.18,116.15,0.06156619]
[1744344952957,0.06093637,116.18,116.16,9.05343069]
[1744344953153,0.06093637,116.18,116.15,0.06156619]
[1744344953965,8.67443637,116.18,116.15,0.06156619]
[1744344954161,8.67443637,116.18,116.16,9.06472091]
[1744344954463,8.67443637,116.18,116.15,0.06156619]
[1744344954668,8.67443637,116.18,116.16,9.06395939]
[1744344954965,8.67443637,116.18,116.15,0.06156619]
[1744344955160,8.67443637,116.18,116.16,17.98238447]
[1744344955354,0.06093637,116.18,116.17,9.07174266]
[1744344958256,0.06093637,116.18,116.15,8.67646619]
[1744344958257,0.06093637,116.18,116.15,10.85834697]
[1744344958459,0.06093637,116.18,116.16,9.0754549]
[1744344958660,0.06093637,116.18,116.17,17.98825699]
[1744344958867,0.06093637,116.18,116.17,26.60215699]
[1744344960366,48.56,116.24,116.17,28.78503777]
[1744344960567,48.56,116.24,116.18,9.0754549]
[1744344960769,48.56,116.24,116.19,19.87223568]
[1744344960968,48.56,116.24,116.2,9.0754549]
[1744344961161,48.56,116.24,116.21,9.0754549]
[1744344961361,48.56,116.24,116.2,8.91280209]
[1744344961558,57.22881839,116.24,116.21,9.12408504]
[1744344961761,48.62001839,116.24,116.21,0.05571706]
[1744344961965,48.62001839,116.24,116.16,8.6143]
[1744344962170,59.35678078,116.24,116.17,9.07545347]
[1744344962369,59.35678078,116.24,116.16,8.6143]
[1744344962669,8.6129,116.19,116.15,19.41168078]
[1744344962858,59.33678078,116.19,116.11,1.49790165]
[1744344963064,0.05863896,116.16,116.14,0.05497233]
[1744344963264,59.33678078,116.15,116.12,8.92945554]
[1744344963566,48.54,116.15,116.12,8.92945554]
[1744344963763,48.54,116.15,116.09,8.6194]
[1744344964169,8.6174,116.13,116.09,8.6194]
[1744344964465,0.06499124,116.13,116.11,0.05897946]
[1744344964667,8.6176,116.12,116.11,0.05897946]
[1744344965572,8.6192,116.1,116.08,74.00375588]
[1744344965966,8.6192,116.1,116.05,6.379]
[1744344966167,8.6192,116.1,116.06,8.75901503]
[1744344966368,8.6192,116.1,116.05,6.379]
[1744344966568,8.6192,116.1,116.07,8.91683026]
[1744344966768,0.05519125,116.09,116.07,8.91683026]
[1744344966969,0.05519125,116.09,116.06,0.05742373]
[1744344968574,8.67539125,116.09,116.06,0.05742373]
[1744344968774,0.05519125,116.09,116.06,0.05742373]
[1744344969370,0.05519125,116.09,115.99,65.85774419]
[1744344969575,8.6221,116.06,116.03,8.6243]
[1744344969770,8.6221,116.06,116.0,4.3868]
[1744344970073,8.6221,116.06,116.02,8.6244]
[1744344970376,0.06370252,116.05,116.03,0.06396564]
[1744344970567,8.68650252,116.05,116.03,0.06396564]
[1744344970777,0.06370252,116.05,116.03,0.06396564]
[1744344971068,8.68680252,116.05,116.03,0.06396564]
[1744344971276,0.06370252,116.05,116.03,0.06396564]
[1744344971774,0.06370252,116.05,116.03,8.68786564]
[1744344973070,0.06370252,116.05,116.04,8.6235]
[1744344973375,0.06370252,116.05,116.03,0.06396564]
[1744344973569,0.06370252,116.05,116.03,8.68776564]
[1744344974079,0.06370252,116.05,116.04,8.6235]
[1744344974569,0.06370252,116.05,116.03,0.06396564]
[1744344974767,0.06370252,116.05,116.03,8.68776564]
[1744344977577,0.06370252,116.05,116.04,8.6235]
[1744344978072,0.06370252,116.05,116.03,0.06396564]
[1744344978270,49.08,116.1,116.04,34.94526038]
[1744344978471,681.96,116.14,116.04,34.94526038]
[1744344978472,49.08,116.13,116.05,2.1871]
[1744344978876,49.08,116.13,116.06,2.2368]
[1744344979374,0.06253619,116.11,116.08,8.67628198]
[1744344979576,0.06253619,116.11,116.08,0.05608198]
[1744344980784,0.06253619,116.11,116.08,8.67628198]
[1744344981085,8.68103619,116.11,116.08,0.05608198]
[1744344981279,0.06253619,116.11,116.08,0.05608198]
[1744344981681,8.6196,116.1,116.08,0.05608198]
[1744344986088,0.06253619,116.11,116.08,0.05608198]
[1744344987292,0.06253619,116.11,116.02,10.8785]
[1744344987592,92.28774419,116.13,116.03,17.67866438]
[1744344987890,8.6225,116.06,116.04,8.92041331]
[1744344988081,17.29774419,116.13,116.04,8.92041331]
[1744344988285,0.06050478,116.06,116.04,17.35513124]
[1744344988486,49.08,116.11,116.05,8.75265998]
[1744344988689,0.06483289,116.06,116.04,17.36308711]
[1744344988890,49.08,116.11,116.07,8.6207]
[1744344989186,0.05775319,116.1,116.04,17.29774419]
[1744344989493,0.05775319,116.1,116.08,8.67884672]
[1744344990190,0.05775319,116.1,116.09,8.6198]
[1744344990496,0.05775319,116.1,116.09,8.91058841]
[1744344990793,0.05775319,116.1,116.08,0.05874672]
[1744344990995,0.05775319,116.1,116.08,8.67884672]
[1744344991594,0.05775319,116.1,116.09,8.6198]
[1744344992296,0.05775319,116.1,116.08,8.67904672]
[1744344993591,0.05775319,116.1,116.08,0.05874672]
[1744344995090,0.05775319,116.1,116.08,8.67894672]
[1744344995292,0.05775319,116.1,116.08,0.05874672]
[1744344995491,0.05775319,116.1,116.09,8.6198]
[1744344995690,0.05775319,116.1,116.08,0.05874672]
[1744344996293,8.67715319,116.1,116.08,0.05874672]
[1744344996695,0.05775319,116.1,116.08,0.05874672]
[1744344996899,8.6198,116.09,116.08,0.05874672]
[1744344997198,0.05775319,116.1,116.08,0.05874672]
[1744344997399,47.45775319,116.1,116.08,0.05874672]
[1744344998697,8.6198,116.09,116.08,0.05874672]
[1744345001801,8.62,116.09,116.0,62.0]
[1744345002005,6.6686,116.08,116.01,17.73637747]
[1744345002205,6.6686,116.08,116.01,8.94970498]
[1744345002402,6.6686,116.08,116.02,8.94970498]
[1744345002907,0.05425793,116.06,116.04,0.05543025]
[1744345003105,8.6228,116.05,116.04,0.05543025]
[1744345003907,47.45425793,116.06,115.97,11.96117808]
[1744345004203,47.4,116.06,115.98,26.39033906]
[1744345004410,8.6251,116.02,115.99,8.79925544]
[1744345004599,8.6251,116.02,115.99,17.76303906]
[1744345004802,8.6251,116.02,116.0,8.96378362]
[1744345005002,8.69019627,116.02,116.0,8.96378362]
[1744345005204,0.06509627,116.02,116.0,8.96378362]
[1744345005504,0.06509627,116.02,115.99,0.0571069]
[1744345006106,0.06509627,116.02,116.0,8.96388359]
[1744345006502,0.06509627,116.02,116.0,17.58988359]
[1744345006802,0.06509627,116.02,116.01,8.97647521]
[1744345007002,8.69009627,116.02,116.01,8.97647521]
[1744345007605,8.69009627,116.02,116.01,17.7988251]
[1744345007905,8.69009627,116.02,116.01,8.97647521]
[1744345008407,8.69009627,116.02,116.01,17.79834216]
[1744345009314,0.06509627,116.02,116.01,17.79834216]
[1744345011898,0.06509627,116.02,116.01,26.42414216]
[1744345012909,47.4,116.06,116.04,8.6235]
[1744345013107,682.44,116.07,116.03,10.82392467]
[1744345013304,682.44,116.07,116.04,8.81498276]
[1744345013503,691.0615,116.07,116.04,8.6231]
[1744345013705,682.44,116.07,116.05,8.81340822]
[1744345013905,47.4,116.09,116.06,8.97647521]
[1744345014107,0.05906086,116.07,116.06,8.97647521]
[1744345014307,8.68036086,116.07,116.06,8.97647521]
[1744345015106,0.05906086,116.07,116.06,8.97647521]
[1744345016214,0.05906086,116.07,116.06,17.59847521]
[1744345016413,0.05906086,116.07,116.06,26.40852976]
[1744345016814,8.68036086,116.07,116.06,8.97647521]
[1744345017205,8.68036086,116.07,116.05,0.0616646]
[1744345018415,8.622,116.06,116.05,0.0616646]
[1744345018715,8.622,116.06,116.05,9.03562708]
[1744345019014,54.342,116.06,116.05,9.03562708]
[1744345019407,54.342,116.06,116.05,0.0616646]
[1744345020804,8.6244,116.03,116.0,13.038]
[1744345021010,8.6244,116.03,116.01,8.81309103]
[1744345021213,47.879,116.06,116.02,8.97826798]
[1744345021408,8.6243,116.03,116.02,8.97826798]
[1744345021809,8.6243,116.03,115.97,13.00222467]
[1744345022004,8.68867487,116.04,116.01,0.06344316]
[1744345022217,8.6239,116.04,116.02,8.81533036]
[1744345022409,0.05985197,116.04,116.01,0.06344316]
[1744345022609,0.05985197,116.04,116.02,17.787978]
[1744345022809,0.05985197,116.04,116.03,8.81210534]
[1744345023315,0.05985197,116.04,116.03,8.97569864]
[1744345023614,0.05985197,116.04,116.03,17.78804468]
[1744345025718,8.68335197,116.04,116.03,17.78804468]
[1744345026019,8.68335197,116.04,116.03,8.97569864]
[1744345026911,8.625,116.02,116.01,0.06344316]
[1744345027115,8.625,116.02,116.01,8.88291871]
[1744345027512,0.05985197,116.04,116.01,8.88291871]
[1744345027713,8.6244,116.03,116.02,8.98396267]
[1744345028714,0.05985197,116.04,116.01,0.06344316]
[1744345030213,8.625,116.02,116.01,0.06344316]
[1744345030515,45.72,116.02,115.96,2.1147]
[1744345030715,8.627,116.0,115.97,21.65137641]
[1744345030912,8.627,116.0,115.98,8.82608145]
[1744345031114,8.627,116.0,115.99,17.8160888]
[1744345031921,2.18985884,116.01,115.98,0.05707554]
[1744345033722,8.6272,115.99,115.98,0.05707554]
[1744345034615,8.6272,115.99,115.98,9.04169339]
[1744345035220,8.6272,115.99,115.98,0.05707554]
[1744345035921,0.06345884,116.01,115.98,8.87735756]
[1744345036119,0.06345884,116.01,115.99,17.80080843]
[1744345036319,8.68985884,116.01,115.99,8.98052641]
[1744345036622,8.68985884,116.01,116.0,8.98052641]
[1744345037224,0.06345884,116.01,116.0,8.98052641]
[1744345037520,0.06345884,116.01,116.0,17.80126283]
[1744345038123,0.06345884,116.01,116.0,17.80213903]
[1744345038921,8.68925884,116.01,116.0,17.80213903]
[1744345039322,8.68925884,116.01,116.0,8.98052641]
[1744345040025,8.6265,116.0,115.99,8.98052641]
[1744345040323,52.8065,116.0,115.99,8.98052641]
[1744345040524,44.18,116.0,115.98,0.05707554]
[1744345040927,8.6272,115.99,115.98,0.05707554]
[1744345041327,8.6272,115.99,115.98,9.06440698]
[1744345041731,8.6272,115.99,115.98,0.05707554]
[1744345043238,8.6272,115.99,115.98,17.91072789]
[1744345043424,52.8068,116.0,115.98,17.91072789]
[1744345043623,44.18,116.0,115.99,8.84137545]
[1744345043820,44.18,116.0,115.99,17.85003738]
[1744345044824,0.06345884,116.01,115.99,17.85003738]
[1744345045026,0.06345884,116.01,116.0,8.84137545]
[1744345045226,0.06345884,116.01,116.0,17.85003738]
[1744345046134,726.82,116.06,116.0,17.85003738]
[1744345046335,726.82,116.06,116.01,8.84137545]
[1744345046531,726.82,116.06,116.02,17.85003738]
[1744345046532,8.6234,116.05,116.02,17.85003738]
[1744345046732,8.6234,116.05,116.02,9.00866193]
[1744345046934,8.6234,116.05,116.03,17.85018405]
[1744345047135,8.6234,116.05,116.03,9.00866193]
[1744345047331,8.6235,116.04,116.03,0.06612559]
[1744345047837,8.6235,116.04,116.03,8.90614693]
[1744345048042,8.68880028,116.05,116.03,8.90614693]
[1744345048237,8.68880028,116.05,116.03,9.06769559]
[1744345048438,0.06570028,116.05,116.03,9.06769559]
[1744345048632,8.68850028,116.05,116.04,9.00157]
[1744345052442,8.68850028,116.05,116.04,17.83729407]
[1744345054332,52.86850028,116.05,116.04,9.00157]
[1744345055935,8.6235,116.04,116.03,0.06612559]
[1744345056629,8.6235,116.04,116.03,2.559e-05]
[1744345058342,12.9628,116.04,116.03,2.559e-05]
[1744345058641,8.6288,115.97,115.95,4.5509]
[1744345058841,8.6288,115.97,115.96,8.84340831]
[1744345059241,8.6288,115.97,115.96,17.84814892]
[1744345060842,8.6288,115.97,115.96,9.00474061]
[1744345061339,8.6288,115.97,115.96,17.65918787]
[1744345062442,8.6288,115.97,115.96,9.00474061]
[1744345064945,51.2688,115.97,115.96,9.00474061]
[1744345065244,8.6295,115.96,115.95,0.05742654]
[1744345065643,8.6295,115.96,115.95,9.07159394]
[1744345067741,42.64,115.97,115.95,9.07159394]
[1744345068142,42.64,115.97,115.96,9.0141674]
[1744345068453,51.2691,115.97,115.96,9.0141674]
[1744345069538,8.6295,115.96,115.95,0.05742654]
[1744345070152,8.6295,115.96,115.95,9.06847706]
[1744345072853,8.6295,115.96,115.95,0.05742654]
[1744345073058,8.6312,115.94,115.91,8.6328]
[1744345073259,8.6312,115.94,115.92,8.6621273]
[1744345073459,8.6312,115.94,115.93,9.01309328]
[1744345074162,8.6312,115.94,115.93,17.67330727]
[1744345074348,8.6312,115.94,115.93,9.01309328]
[1744345080567,0.05532802,115.95,115.93,17.65623275]
[1744345080761,0.05532802,115.95,115.93,9.01309328]
[1744345081566,0.05532802,115.95,115.94,9.01309328]
[1744345081765,8.68552802,115.95,115.94,9.01309328]
[1744345082066,0.05532802,115.95,115.92,0.05793824]
[1744345082466,8.6317,115.93,115.92,0.05793824]
[1744345083762,8.634,115.9,115.87,8.6358]
[1744345083956,42.66,115.9,115.88,8.65292761]
[1744345084155,42.66,115.9,115.85,10.82392467]
[1744345084358,42.66,115.9,115.87,10.82392467]
[1744345084561,42.66,115.93,115.88,8.65046564]
[1744345084761,42.66,115.93,115.89,8.64855019]
[1744345084956,0.0636466,115.92,115.89,8.69583403]
[1744345085769,8.6332,115.91,115.89,0.06163403]
[1744345086369,0.0636466,115.92,115.89,0.06163403]
[1744345086868,8.6339,115.9,115.89,0.06163403]
[1744345089766,8.6335,115.91,115.89,0.06163403]
[1744345090672,8.6339,115.9,115.89,0.06163403]
[1744345099580,8.6339,115.9,115.89,8.9171954]
[1744345102389,41.16,115.91,115.89,17.58716714]
[1744345102585,41.16,115.91,115.89,0.06163403]
[1744345102787,49.7939,115.91,115.89,0.06163403]
[1744345102988,49.7939,115.91,115.9,8.8769203]
[1744345104290,8.6339,115.91,115.9,8.8769203]
[1744345104685,8.6339,115.91,115.9,2.03e-05]
[1744345104889,8.6339,115.9,115.89,0.06163403]
[1744345106293,8.6335,115.91,115.89,0.06163403]
[1744345107291,8.6339,115.9,115.89,0.06163403]
[1744345107485,8.6339,115.9,115.89,8.74773102]
[1744345107891,8.6334,115.91,115.89,8.74773102]
[1744345108087,8.6334,115.91,115.89,0.06163403]
[1744345109690,8.6339,115.9,115.89,0.06163403]
[1744345112696,8.6372,115.86,115.84,4.3925]
[1744345112898,8.6372,115.86,115.85,12.5492065]
[1744345113098,8.6372,115.86,115.85,8.69021211]
[1744345115098,0.06402829,115.87,115.85,12.54750811]
[1744345115297,0.06402829,115.87,115.86,8.69021211]
[1744345116798,0.06402829,115.87,115.86,12.54762198]
[1744345116998,0.06402829,115.87,115.86,21.18452198]
[1744345117195,8.6346,115.9,115.86,12.54762198]
[1744345117396,39.66,115.92,115.87,12.54762198]
[1744345117596,8.6336,115.91,115.88,21.18272198]
[1744345117793,8.6336,115.91,115.89,8.69021211]
[1744345117996,8.6336,115.91,115.88,8.6351]
[1744345118189,8.69345689,115.91,115.89,12.5377587]
[1744345118396,8.69345689,115.91,115.9,8.68248088]
[1744345118904,8.69345689,115.91,115.9,8.68432764]
[1744345119801,723.16,115.97,115.9,12.54051933]
[1744345120106,723.16,115.97,115.91,12.54051933]
[1744345120402,8.6316,115.94,115.92,12.53843437]
[1744345120597,8.6316,115.94,115.93,8.68432764]
[1744345122003,8.68773626,115.95,115.93,8.68363654]
[1744345122299,8.68773626,115.95,115.94,8.6804721]
[1744345122688,8.6312,115.94,115.92,0.06032389]
[1744345122892,8.6312,115.94,115.93,8.68276447]
[1744345123702,8.6317,115.93,115.92,0.06032389]
[1744345123898,39.66,115.93,115.87,2.3097]
[1744345124097,39.66,115.93,115.88,12.54821614]
[1744345124293,8.6337,115.91,115.89,12.5494324]
[1744345124497,8.6337,115.91,115.9,8.68960327]
[1744345124905,39.66,115.93,115.9,12.54882574]
[1744345125098,0.06578862,115.92,115.91,12.54882574]
[1744345125497,0.06578862,115.92,115.91,8.68960327]
[1744345125699,0.06578862,115.92,115.91,12.54737046]
[1744345126003,0.06578862,115.92,115.91,8.68960327]
[1744345126304,0.06578862,115.92,115.91,12.54766345]
[1744345127201,0.06578862,115.92,115.91,21.18086345]
[1744345127506,0.06578862,115.92,115.91,12.54766345]
[1744345130105,0.06578862,115.92,115.91,21.18086345]
[1744345130806,0.06578862,115.92,115.91,12.54766345]
[1744345131195,0.06578862,115.92,115.91,8.68960327]
[1744345131805,8.69828862,115.92,115.91,8.68960327]
[1744345132205,0.06578862,115.92,115.91,8.68960327]
[1744345132507,8.69828862,115.92,115.91,8.68960327]
[1744345133103,8.6334,115.91,115.89,0.06126053]
[1744345133303,8.6334,115.91,115.9,8.69111386]
[1744345134909,8.69868862,115.92,115.9,8.69111386]
[1744345135110,8.69868862,115.92,115.89,8.69576053]
[1744345135412,0.06578862,115.92,115.9,8.693914]
[1744345135603,0.06578862,115.92,115.89,0.06126053]
[1744345135803,0.06578862,115.92,115.9,8.69396073]
[1744345136005,8.6336,115.91,115.89,0.06126053]
[1744345136206,8.6336,115.91,115.9,8.69398143]
[1744345136909,8.69858862,115.92,115.9,8.69398143]
[1744345137106,8.69858862,115.92,115.89,8.69596053]
[1744345137306,0.06578862,115.92,115.9,8.69573117]
[1744345137508,0.06578862,115.92,115.89,8.69596053]
[1744345137808,8.6332,115.91,115.9,8.69531462]
[1744345140009,8.69858862,115.92,115.9,8.69531462]
[1744345140211,0.06578862,115.92,115.9,6.94085729]
[1744345140509,0.06578862,115.92,115.9,15.57475729]
[1744345140704,0.06578862,115.92,115.91,8.68674182]
[1744345142110,0.06578862,115.92,115.91,12.54328776]
[1744345142810,0.06578862,115.92,115.91,21.17648776]
[1744345143003,8.6305,115.95,115.91,12.54328776]
[1744345143208,8.6305,115.95,115.93,6.94085729]
[1744345143410,47.8898,115.96,115.93,8.6316]
[1744345143713,39.26,115.96,115.91,13.14885879]
[1744345143910,8.6304,115.95,115.92,12.52936119]
[1744345144104,8.69426831,115.95,115.93,8.6766047]
[1744345144305,8.69426831,115.95,115.94,8.6766047]
[1744345144606,8.6313,115.94,115.92,0.05578592]
[1744345146010,8.6317,115.93,115.92,0.05578592]
[1744345146213,8.6317,115.93,115.92,8.72268979]
[1744345146706,8.6317,115.93,115.92,0.05578592]
[1744345147904,8.6312,115.94,115.92,0.05578592]
[1744345148517,0.06386831,115.95,115.93,17.2947457]
[1744345148709,0.06386831,115.95,115.92,0.05578592]
[1744345148914,0.06386831,115.95,115.93,8.66344697]
[1744345149109,0.06386831,115.95,115.92,0.05578592]
[1744345149308,0.06386831,115.95,115.93,8.66203307]
[1744345149512,0.06386831,115.95,115.92,0.05578592]
[1744345149716,8.6316,115.94,115.93,8.66202362]
[1744345150316,8.6317,115.93,115.92,0.05578592]
[1744345150513,8.6317,115.93,115.92,8.71963973]
[1744345151515,8.6317,115.93,115.92,0.05578592]
[1744345152124,8.6341,115.9,115.87,2.3097]
[1744345152310,8.6341,115.9,115.88,8.67378196]
[1744345152513,8.6359,115.88,115.85,2.2429]
[1744345152817,8.6359,115.88,115.86,12.52734921]
[1744345153018,8.6359,115.88,115.87,8.67511996]
[1744345153318,8.69174871,115.88,115.87,8.67511996]
[1744345154223,8.6362,115.87,115.85,0.06104943]
[1744345154423,0.05584871,115.88,115.86,8.67937077]
[1744345154617,8.69194871,115.88,115.85,0.06104943]
[1744345154812,0.05584871,115.88,115.86,8.67969858]
[1744345155019,39.26,115.87,115.85,0.06104943]
[1744345155417,8.6369,115.86,115.85,0.06104943]
[1744345157327,8.6396,115.83,115.8,10.8228]
[1744345157524,8.6396,115.83,115.81,12.52592542]
[1744345157725,8.6396,115.83,115.82,8.67402179]
[1744345157920,39.26,115.87,115.82,8.67402179]
[1744345158127,39.26,115.87,115.78,24.8845807]
[1744345158325,39.26,115.87,115.79,12.52354727]
[1744345158526,8.6397,115.83,115.81,0.05590251]
[1744345159635,0.05610823,115.84,115.81,0.05590251]
[1744345160833,39.28,115.83,115.81,0.05590251]
[1744345161034,8.6399,115.82,115.81,0.05590251]
[1744345166035,47.9195,115.83,115.81,0.05590251]
[1744345167337,8.6399,115.82,115.81,0.05590251]
[1744345167640,39.28,115.83,115.81,0.05590251]
[1744345167842,39.28,115.83,115.81,7.00742474]
[1744345168042,39.28,115.83,115.81,15.64782474]
[1744345168840,39.28,115.83,115.81,7.00742474]
[1744345169040,39.28,115.83,115.81,0.05590251]
[1744345170039,39.28,115.83,115.81,8.69610251]
[1744345174447,47.9192,115.83,115.81,0.05590251]
[1744345176145,8.6399,115.82,115.81,0.05590251]
[1744345176346,39.28,115.83,115.81,0.05590251]
[1744345176646,47.9195,115.83,115.81,0.05590251]
[1744345181944,8.6395,115.83,115.81,0.05590251]
[1744345183340,38.29610823,115.84,115.81,0.05590251]
[1744345183549,38.29610823,115.84,115.81,4.45680251]
[1744345183850,38.29610823,115.84,115.82,8.6393]
[1744345184749,38.29610823,115.84,115.81,0.05590251]
[1744345185955,8.6399,115.82,115.81,0.05590251]
[1744345188645,10.85914187,115.83,115.75,1.50294759]
[1744345188857,13.01154187,115.83,115.76,12.47651669]
[1744345189154,2.3027,115.82,115.74,10.85914187]
[1744345189355,8.6426,115.79,115.76,8.644]
[1744345189557,8.6426,115.79,115.77,6.95550957]
[1744345189758,8.70323216,115.79,115.77,6.95550957]
[1744345190357,0.06063216,115.79,115.77,15.59910957]
[1744345190560,0.06063216,115.79,115.78,8.64693918]
[1744345190751,0.06063216,115.79,115.77,15.59910957]
[1744345191052,0.06063216,115.79,115.78,8.64671602]
[1744345191358,0.06063216,115.79,115.78,8.65000665]
[1744345192258,0.06063216,115.79,115.78,17.29290665]
[1744345193160,0.06063216,115.79,115.78,21.13769515]
[1744345193456,0.06063216,115.79,115.78,17.29290665]
[1744345194160,0.06063216,115.79,115.78,21.14195687]
[1744345194460,0.06063216,115.79,115.78,12.49905687]
[1744345195061,8.70273216,115.79,115.78,12.49905687]
[1744345195361,8.70273216,115.79,115.78,8.65000665]
[1744345196162,8.70273216,115.79,115.78,12.50839542]
[1744345196463,0.06063216,115.79,115.78,12.50839542]
[1744345197257,8.70273216,115.79,115.78,12.50839542]
[1744345200663,0.06063216,115.79,115.78,12.51459746]
[1744345200966,0.06063216,115.79,115.78,21.15749746]
[1744345201466,0.06063216,115.79,115.78,21.1562692]
[1744345202566,8.6408,115.81,115.78,21.1562692]
[1744345202766,8.6408,115.81,115.79,12.5133692]
[1744345203067,8.6408,115.81,115.8,12.5133692]
[1744345203262,44.27550957,115.84,115.8,12.5133692]
[1744345203461,37.32,115.84,115.81,19.46887877]
[1744345203660,0.06334697,115.83,115.82,12.5133692]
[1744345204356,8.70254697,115.83,115.82,12.5133692]
[1744345204561,0.06334697,115.83,115.82,12.5133692]
[1744345205064,0.06334697,115.83,115.82,12.56569676]
[1744345205867,8.70254697,115.83,115.82,12.56569676]
[1744345206865,8.70254697,115.83,115.82,12.5658396]
[1744345207167,0.06334697,115.83,115.82,12.5658396]
[1744345207767,8.70254697,115.83,115.82,12.5658396]
[1744345211270,8.70254697,115.83,115.82,8.70155942]
[1744345212071,0.06334697,115.83,115.82,12.56310768]
[1744345212570,8.70254697,115.83,115.82,8.70155942]
[1744345212874,0.06334697,115.83,115.82,12.56263636]
[1744345213573,8.70254697,115.83,115.82,12.56263636]
[1744345213874,0.06334697,115.83,115.82,12.56263636]
[1744345214073,0.06334697,115.83,115.82,21.20253636]
[1744345215674,0.06334697,115.83,115.82,12.56263636]
[1744345216070,0.06334697,115.83,115.82,8.70155942]
[1744345216271,0.06334697,115.83,115.81,0.05880761]
[1744345216876,8.6399,115.82,115.81,0.05880761]
[1744345217175,0.06334697,115.83,115.81,3.92196022]
[1744345217377,0.06334697,115.83,115.82,3.86315261]
[1744345217576,8.70284697,115.83,115.82,3.86315261]
[1744345217878,0.06334697,115.83,115.81,0.05880761]
[1744345218374,0.06334697,115.83,115.82,3.86204712]
[1744345218872,0.06334697,115.83,115.82,10.81755669]
[1744345219177,44.27550957,115.87,115.82,19.45705669]
[1744345219367,44.27550957,115.87,115.83,3.86127326]
[1744345219571,44.27550957,115.87,115.82,15.59500957]
[1744345219772,44.27550957,115.87,115.83,3.86118036]
[1744345220077,8.6381,115.85,115.84,0.05967999]
[1744345220679,15.59360957,115.85,115.84,0.05967999]
[1744345224382,6.95550957,115.85,115.78,44.27550957]
[1744345224586,6.95550957,115.83,115.79,3.86270568]
[1744345224782,44.27550957,115.83,115.8,3.86270568]
[1744345225078,8.6407,115.81,115.78,15.59800957]
[1744345225279,44.27550957,115.83,115.79,3.86292877]
[1744345225479,0.05691468,115.81,115.8,3.86292877]
[1744345225680,0.05691468,115.81,115.79,3.86292877]
[1744345225876,8.6414,115.8,115.79,0.05663084]
[1744345226980,8.69781468,115.81,115.79,0.05663084]
[1744345227583,8.6414,115.8,115.79,0.05663084]
[1744345228295,8.69791468,115.81,115.79,8.5421647]
[1744345228590,8.69791468,115.81,115.79,0.05663084]
[1744345229793,8.69791468,115.81,115.8,8.48161925]
[1744345231496,8.69791468,115.81,115.8,8.48297613]
[1744345233284,8.69791468,115.81,115.79,0.05663084]
[1744345235196,8.69791468,115.81,115.8,8.4726158]
[1744345236197,8.69791468,115.81,115.79,0.05663084]
[1744345236398,8.69791468,115.81,115.8,8.46841903]
[1744345237192,0.05691468,115.81,115.8,8.46841903]
[1744345237397,36.8,115.86,115.8,19.27985675]
[1744345237605,36.8,115.86,115.82,6.95550957]
[1744345237898,8.6387,115.84,115.82,6.95550957]
[1744345238400,8.638,115.85,115.82,6.95550957]
[1744345238597,0.06062726,115.84,115.82,0.06255972]
[1744345239300,0.06062726,115.84,115.82,8.70215972]
[1744345239901,8.69922726,115.84,115.82,0.06255972]
[1744345240801,0.06062726,115.84,115.82,0.06255972]
[1744345241403,8.69942726,115.84,115.82,0.06255972]
[1744345241702,0.06062726,115.84,115.82,0.06255972]
[1744345241898,15.59470957,115.83,115.82,0.06255972]
[1744345242095,6.95550957,115.83,115.77,6.95550957]
[1744345242292,6.95550957,115.82,115.78,12.32758485]
[1744345242497,6.95550957,115.82,115.79,8.47006214]
[1744345242692,6.95550957,115.81,115.77,8.6435]
[1744345242900,6.95550957,115.81,115.78,12.33021327]
[1744345243091,6.95550957,115.81,115.79,8.47185012]
[1744345243295,7.01238009,115.81,115.78,0.05751342]
[1744345243497,43.81238009,115.81,115.79,8.50188598]
[1744345243701,43.81238009,115.81,115.78,0.05751342]
[1744345243898,8.6421,115.8,115.79,8.50487795]
[1744345244405,15.59760957,115.8,115.79,8.50487795]
[1744345245213,8.6421,115.8,115.79,8.50487795]
[1744345245402,45.49787052,115.81,115.79,8.50404851]